bitfinex/quotes_BTCUSD_20251217
["timestamp","ask_amount","ask_price","bid_price","bid_amount"]
[1765986826582,0.1138601,87759.0,87744.0,0.00161287]
[1765986827254,0.1138601,87763.0,87744.0,0.00161287]
[1765986827502,0.01932,87762.0,87744.0,0.00161287]
[1765986827752,0.1138601,87763.0,87744.0,0.00561287]
[1765986827950,0.01932,87763.0,87747.0,0.0113964]
[1765986828156,0.1138601,87780.0,87755.0,0.23930053]
[1765986828382,0.01932,87779.0,87763.0,0.01351176]
[1765986828591,0.52268,87797.0,87763.0,0.00161287]
[1765986828592,0.01932,87778.0,87763.0,0.00161287]
[1765986828820,0.1138601,87771.0,87763.0,0.00161287]
[1765986829037,0.52268,87786.0,87763.0,0.00161287]
[1765986829241,0.52268,87803.0,87770.0,0.67779287]
[1765986829444,0.52268,87803.0,87757.0,0.01367412]
[1765986829445,0.01932,87802.0,87785.0,0.00161287]
[1765986829649,0.01932,87802.0,87787.0,0.01351176]
[1765986829825,0.01932,87802.0,87787.0,0.01512463]
[1765986830265,0.01932,87802.0,87787.0,0.00161287]
[1765986830472,0.11386012,87815.0,87787.0,0.00161287]
[1765986830786,0.01932,87801.0,87787.0,0.00161287]
[1765986831561,0.13318012,87801.0,87787.0,0.00161287]
[1765986831768,0.13318012,87801.0,87789.0,0.01351176]
[1765986831977,0.11386012,87814.0,87789.0,0.01512463]
[1765986832181,0.01928,87806.0,87790.0,0.08004449]
[1765986832384,0.11386012,87802.0,87790.0,0.08004449]
[1765986832579,0.54196,87806.0,87720.0,0.00099551]
[1765986832580,0.05693004,87794.0,87720.0,0.00099551]
[1765986832786,0.11386012,87775.0,87747.0,0.1128601]
[1765986833002,0.06830986,87851.0,87772.0,0.51201]
[1765986833204,0.05693004,87803.0,87774.0,0.00161287]
[1765986833412,0.11388407,87790.0,87774.0,0.00161287]
[1765986833614,0.11388407,87790.0,87762.0,0.67618]
[1765986833826,0.01932,87789.0,87762.0,0.67779287]
[1765986834220,0.11388407,87772.0,87763.0,0.0790653]
[1765986834432,0.01932,87771.0,87762.0,0.00161287]
[1765986834643,0.2907,87809.0,87751.0,0.01351176]
[1765986834644,0.11386417,87801.0,87771.0,0.67618]
[1765986834855,0.01928,87800.0,87777.0,0.6875725]
[1765986835071,0.00371713,87807.0,87799.0,0.01138965]
[1765986835302,0.01928,87813.0,87806.0,0.00161287]
[1765986835513,0.01928,87813.0,87787.0,0.01351176]
[1765986835715,0.11386417,87811.0,87787.0,0.01512463]
[1765986835888,0.11386417,87811.0,87788.0,0.06990811]
[1765986836105,0.05693004,87810.0,87788.0,0.07152098]
[1765986836249,0.01928,87812.0,87788.0,0.07152098]
[1765986836671,0.11386417,87816.0,87796.0,0.01351176]
[1765986836870,0.52268,87833.0,87799.0,0.67618]
[1765986836871,0.01928,87815.0,87799.0,0.67618]
[1765986837098,0.11386417,87832.0,87800.0,0.07750388]
[1765986837403,0.11386417,87815.0,87800.0,0.07911675]
[1765986837558,0.11386417,87821.0,87800.0,0.00161287]
[1765986837763,0.01928,87826.0,87808.0,0.1128601]
[1765986837967,0.11386417,87822.0,87808.0,0.00161287]
[1765986838371,0.01928,87826.0,87789.0,0.1128601]
[1765986838602,0.11386417,87813.0,87796.0,0.01512463]
[1765986838810,0.52268,87830.0,87796.0,0.01512463]
[1765986838811,0.11386417,87827.0,87800.0,0.1128601]
[1765986839084,0.0014,87823.0,87802.0,0.67618]
[1765986839465,0.0014,87823.0,87801.0,0.02418786]
[1765986839466,0.11386417,87849.0,87823.0,0.67618]
[1765986839670,0.11386417,87855.0,87826.0,0.1128601]
[1765986839801,0.11386417,87854.0,87828.0,0.01138589]
[1765986840007,0.01928,87855.0,87828.0,0.01138589]
[1765986840008,0.01928,87855.0,87829.0,0.67618]
[1765986840224,0.01928,87855.0,87829.0,0.00161287]
[1765986840425,0.57951017,87854.0,87829.0,0.00161287]
[1765986840625,0.11386417,87850.0,87829.0,0.00161287]
[1765986840947,0.05731371,87887.0,87829.0,0.00161287]
[1765986840948,0.13314417,87868.0,87844.0,0.67618]
[1765986841182,0.01928,87869.0,87844.0,0.62648297]
[1765986841311,0.52268,87883.0,87846.0,0.67618]
[1765986841513,0.00099999,87930.0,87882.0,0.00161287]
[1765986841880,0.002,87855.0,87844.0,0.67618]
[1765986842082,0.01928,87874.0,87845.0,0.1128601]
[1765986842290,0.05683017,87861.0,87838.0,0.1128601]
[1765986842521,0.11386417,87873.0,87837.0,0.227694]
[1765986842728,0.22749486,87915.0,87830.0,0.0114473]
[1765986842729,0.50493,87898.0,87854.0,0.73156]
[1765986842942,0.50493,87887.0,87848.0,0.01928]
[1765986843139,0.63814417,87882.0,87847.0,0.01928]
[1765986843344,0.11386417,87872.0,87847.0,0.01928]
[1765986843550,0.52428,87869.0,87838.0,0.0748104]
[1765986843761,0.11386417,87837.0,87804.0,0.01928]
[1765986843984,0.05683017,87837.0,87806.0,0.1128601]
[1765986844191,0.74332,87819.0,87749.0,0.71009]
[1765986844395,0.74332,87819.0,87700.0,1.08546935]
[1765986844396,0.2907,87794.0,87755.0,0.1128601]
[1765986844608,0.07621004,87793.0,87759.0,0.01139484]
[1765986844828,0.01928,87792.0,87767.0,0.8229501]
[1765986845054,0.01928,87792.0,87755.0,0.8229501]
[1765986845055,0.54356,87792.0,87755.0,0.8229501]
[1765986845258,0.54356,87792.0,87751.0,0.01351176]
[1765986845259,0.05693004,87774.0,87751.0,0.01351176]
[1765986845471,0.83546935,87790.0,87756.0,0.1128601]
[1765986845675,0.83546935,87790.0,87751.0,0.01351176]
[1765986845676,0.11386417,87783.0,87754.0,0.1128601]
[1765986845892,0.11386417,87787.0,87755.0,0.71009]
[1765986846102,0.00161,87792.0,87772.0,0.1128601]
[1765986846335,0.01928,87812.0,87782.0,0.01139185]
[1765986846557,0.74332,87869.0,87816.0,0.49258]
[1765986846771,0.11386417,87877.0,87840.0,0.22768421]
[1765986847022,0.11386417,87882.0,87853.0,0.1128601]
[1765986847238,0.11386417,87887.0,87855.0,0.8229501]
[1765986847451,0.11386417,87887.0,87855.0,0.82456297]
[1765986847667,0.11386417,87887.0,87856.0,0.01365871]
[1765986847876,0.11386417,87887.0,87855.0,0.11447297]
[1765986847877,0.05683017,87876.0,87855.0,0.00161287]
[1765986848084,0.11386417,87864.0,87855.0,0.00161287]
[1765986848285,0.003,87877.0,87855.0,0.00161287]
[1765986848501,0.83546935,87890.0,87855.0,0.00161287]
[1765986848502,0.11386417,87870.0,87855.0,0.00161287]
[1765986848706,0.11386417,87889.0,87856.0,0.71009]
[1765986848908,0.004,87887.0,87861.0,0.12637186]
[1765986849130,0.004,87887.0,87861.0,0.12798473]
[1765986849334,0.004,87887.0,87861.0,0.01512463]
[1765986849540,0.05683017,87876.0,87861.0,0.00161287]
[1765986849690,0.11547417,87876.0,87861.0,2.87e-06]
[1765986849897,0.00161,87876.0,87861.0,2.87e-06]
[1765986850315,2.7e-07,87862.0,87861.0,0.74036287]
[1765986850515,0.002,87877.0,87861.0,2.87e-06]
[1765986850948,0.11386417,87873.0,87861.0,2.87e-06]
[1765986851152,0.11386417,87885.0,87861.0,2.87e-06]
[1765986851364,0.11386417,87889.0,87863.0,0.1128601]
[1765986851620,0.11386417,87901.0,87863.0,0.1144727]
[1765986851837,0.11386417,87891.0,87870.0,0.01351176]
[1765986852052,0.001,87877.0,87863.0,0.0016126]
[1765986852265,0.001,87877.0,87863.0,0.6960426]
[1765986852484,0.70141,87905.0,87867.0,0.1128601]
[1765986852485,0.05683017,87895.0,87867.0,0.1128601]
[1765986852684,0.11386417,87877.0,87863.0,0.0016126]
[1765986852908,0.11386417,87877.0,87828.0,0.01138589]
[1765986852909,0.05683017,87868.0,87849.0,0.01924]
[1765986853115,0.11386417,87886.0,87854.0,0.1128601]
[1765986853322,0.52269,87879.0,87850.0,0.01924]
[1765986853521,0.05683017,87877.0,87844.0,0.1128601]
[1765986853752,0.05844044,87877.0,87849.0,0.01924]
[1765986853939,0.00161027,87877.0,87852.0,0.1128601]
[1765986854351,0.00161027,87877.0,87856.0,0.51629]
[1765986854569,0.52269,87925.0,87859.0,0.51629]
[1765986854761,0.00161027,87925.0,87900.0,0.01137656]
[1765986854941,0.00161027,87925.0,87909.0,0.1128601]
[1765986855166,0.00161027,87925.0,87904.0,0.1128601]
[1765986855298,0.11386417,87922.0,87906.0,0.01924]
[1765986855501,0.11386417,87922.0,87889.0,0.1128601]
[1765986855502,0.11386417,87913.0,87896.0,0.01924]
[1765986855707,0.00161027,87922.0,87896.0,0.01924]
[1765986855912,0.00161027,87922.0,87898.0,0.1128601]
[1765986856110,0.00161027,87922.0,87890.0,0.11965505]
[1765986856309,0.11386417,87918.0,87891.0,0.0814085]
[1765986856536,0.00161027,87918.0,87898.0,0.1128601]
[1765986856788,2.7e-07,87918.0,87907.0,0.1128601]
[1765986857146,2.7e-07,87918.0,87908.0,0.01924]
[1765986857520,0.002,87922.0,87896.0,0.01365249]
[1765986857742,0.92379969,87930.0,87896.0,0.0016126]
[1765986857947,0.52269,87929.0,87897.0,0.01416379]
[1765986858161,0.11386417,87902.0,87874.0,0.1128601]
[1765986858371,0.92379969,87890.0,87874.0,0.0016126]
[1765986858574,0.52269,87929.0,87869.0,1.76e-06]
[1765986858778,0.52269,87907.0,87872.0,0.0192]
[1765986858984,0.0192,87911.0,87883.0,0.01351176]
[1765986859190,0.11386417,87919.0,87887.0,0.1128601]
[1765986859391,0.0192,87912.0,87875.0,0.0192]
[1765986859519,0.92379969,87910.0,87874.0,0.1128601]
[1765986859722,0.0192,87912.0,87842.0,0.01138407]
[1765986859723,0.52269,87889.0,87842.0,0.01138407]
[1765986859947,0.11386417,87877.0,87841.0,0.69443]
[1765986860144,0.05683017,87864.0,87839.0,0.0192]
[1765986860370,0.70141,87890.0,87846.0,0.01138355]
[1765986860578,0.70141,87890.0,87844.0,0.52767381]
[1765986860579,0.00161027,87890.0,87856.0,0.1128601]
[1765986860787,0.00161027,87890.0,87857.0,0.1128601]
[1765986860957,0.11386417,87874.0,87854.0,0.0192]
[1765986861156,0.00161027,87874.0,87849.0,0.1320601]
[1765986861388,0.00161027,87874.0,87840.0,0.69443]
[1765986861389,0.00161027,87874.0,87850.0,0.01320601]
[1765986861615,0.92379969,87870.0,87839.0,0.001]
[1765986861818,0.11386417,87850.0,87833.0,0.01351176]
[1765986862018,0.52269,87869.0,87833.0,0.12637186]
[1765986862222,0.05683017,87863.0,87833.0,0.12637186]
[1765986862424,0.05844044,87863.0,87836.0,0.1128601]
[1765986862636,0.05844044,87863.0,87828.0,0.53549]
[1765986862637,0.05683017,87856.0,87837.0,0.08208019]
[1765986862903,0.11386417,87847.0,87837.0,1.9e-07]
[1765986863106,0.00161027,87847.0,87821.0,0.0192]
[1765986863310,0.11547444,87847.0,87821.0,0.0192]
[1765986863523,0.11386417,87868.0,87836.0,0.34055457]
[1765986863725,0.0192,87910.0,87862.0,0.01138148]
[1765986863935,0.11386417,87904.0,87875.0,0.1128601]
[1765986864150,0.02081027,87910.0,87885.0,0.69443]
[1765986864151,0.00161027,87910.0,87885.0,0.69443]
[1765986864365,1.0,87909.0,87871.0,0.0192]
[1765986864571,0.11386417,87898.0,87871.0,0.0192]
[1765986864783,0.11386417,87902.0,87874.0,0.69443]
[1765986864988,0.00024857,87892.0,87872.0,0.02718464]
[1765986865198,0.00024857,87892.0,87859.0,0.69443]
[1765986865414,0.00024857,87892.0,87873.0,0.01138005]
[1765986865623,0.00161027,87910.0,87883.0,0.01137876]
[1765986865830,0.00161027,87910.0,87894.0,0.01137734]
[1765986866040,0.52269,87924.0,87898.0,0.1128601]
[1765986866041,0.11386417,87922.0,87898.0,0.1128601]
[1765986866251,0.11386417,87922.0,87899.0,0.01455719]
[1765986866460,0.70141,87902.0,87834.0,0.2276998]
[1765986866671,0.2907,87874.0,87819.0,0.69443]
[1765986866876,0.11386417,87852.0,87822.0,0.01138666]
[1765986867079,0.01924,87855.0,87824.0,0.51629]
[1765986867279,0.52269,87849.0,87820.0,0.01351176]
[1765986867490,0.70141,87869.0,87821.0,0.01366415]
[1765986867697,0.11386417,87843.0,87820.0,0.01351176]
[1765986867903,0.11386417,87831.0,87820.0,0.01351176]
[1765986868511,0.13310417,87842.0,87820.0,0.01351176]
[1765986868932,0.01924,87854.0,87821.0,0.67729]
[1765986869153,0.01924,87854.0,87823.0,0.67729]
[1765986869327,0.11386417,87844.0,87820.0,0.01351176]
[1765986869531,0.11386417,87844.0,87821.0,0.67729]
[1765986869532,0.00161027,87844.0,87821.0,0.67729]
[1765986869738,0.01924,87854.0,87830.0,0.47624]
[1765986869945,0.6991,87908.0,87854.0,0.01138252]
[1765986870140,0.48485,87899.0,87858.0,0.67729]
[1765986870342,0.11386417,87888.0,87859.0,0.00930074]
[1765986870559,0.05683017,87885.0,87841.0,0.67729]
[1765986870716,0.48485,87884.0,87852.0,0.01924]
[1765986870912,0.00161027,87884.0,87856.0,0.01138226]
[1765986871127,0.01924,87904.0,87867.0,0.67729]
[1765986871354,0.11386417,87893.0,87867.0,0.0016126]
[1765986871564,0.05683017,87874.0,87824.0,0.0113864]
[1765986871786,0.11386417,87858.0,87825.0,0.01924]
[1765986871995,0.01924,87857.0,87826.0,0.01366337]
[1765986872203,0.92379969,87850.0,87820.0,0.01351176]
[1765986872414,0.05693004,87835.0,87820.0,0.0016126]
[1765986872627,0.01924,87836.0,87797.0,0.67729]
[1765986872845,0.01924,87836.0,87797.0,0.0016126]
[1765986873057,0.11386417,87822.0,87797.0,0.0016126]
[1765986873466,0.11386417,87835.0,87802.0,0.67729]
[1765986873671,0.11386417,87820.0,87802.0,0.0016126]
[1765986874075,0.48485,87819.0,87788.0,0.00371416]
[1765986874299,0.48485,87799.0,87761.0,0.02889985]
[1765986874689,0.48485,87799.0,87762.0,0.67729]
[1765986874690,0.05693004,87799.0,87762.0,0.67729]
[1765986874896,0.0192,87799.0,87775.0,0.01351176]
[1765986875096,0.0192,87799.0,87775.0,0.0016126]
[1765986875301,0.11386417,87791.0,87775.0,0.0016126]
[1765986875765,0.6991,87807.0,87775.0,0.0016126]
[1765986875766,0.92379969,87810.0,87775.0,0.0016126]
[1765986875967,0.001,87799.0,87775.0,0.0016126]
[1765986876784,0.001,87799.0,87775.0,0.02727956]
[1765986876994,0.92379969,87790.0,87775.0,0.02727956]
[1765986877199,0.0192,87790.0,87775.0,0.0016126]
[1765986877409,0.11386417,87783.0,87754.0,0.0192]
[1765986877623,0.11386417,87783.0,87755.0,0.0016126]
[1765986878210,0.11386417,87783.0,87775.0,0.001]
[1765986878416,0.11386417,87783.0,87755.0,0.0016126]
[1765986878417,0.11386417,87783.0,87758.0,0.01139497]
[1765986878620,0.48485,87789.0,87758.0,0.01139497]
[1765986878621,0.05693004,87798.0,87765.0,0.67729]
[1765986878832,0.11386417,87799.0,87775.0,0.01351176]
[1765986879053,0.92379969,87790.0,87765.0,0.0016126]
[1765986879255,0.48485,87789.0,87766.0,0.0016126]
[1765986879491,0.0192,87789.0,87766.0,0.0016126]
[1765986879604,0.0192,87788.0,87767.0,0.67729]
[1765986879831,0.11386417,87795.0,87774.0,0.01351176]
[1765986880037,0.05693004,87818.0,87788.0,0.01351176]
[1765986880234,0.05693004,87806.0,87788.0,0.0016126]
[1765986880451,0.0192,87816.0,87770.0,0.0192]
[1765986880452,0.11386417,87790.0,87770.0,0.0192]
[1765986880866,0.51679,87799.0,87770.0,0.0192]
[1765986881106,0.11386417,87781.0,87754.0,0.0192]
[1765986881311,0.53599,87788.0,87758.0,0.002]
[1765986881512,0.51679,87784.0,87736.0,0.72365]
[1765986881715,0.92379969,87764.0,87726.0,0.0192]
[1765986881912,0.92379969,87760.0,87726.0,0.0192]
[1765986882271,0.11386417,87743.0,87719.0,0.0192]
[1765986882510,0.11386417,87734.0,87703.0,0.0192]
[1765986882708,0.001,87770.0,87692.0,0.01140354]
[1765986882709,0.0192,87738.0,87709.0,0.22802643]
[1765986882908,0.51679,87754.0,87717.0,0.01140029]
[1765986882909,0.11386417,87745.0,87717.0,0.01140029]
[1765986883138,0.11386417,87745.0,87718.0,0.0136802]
[1765986883360,0.92379969,87740.0,87712.0,0.01309217]
[1765986883564,0.11386417,87736.0,87710.0,0.07864219]
[1765986883765,0.11386417,87736.0,87715.0,0.01351176]
[1765986884060,0.11386417,87726.0,87703.0,0.0192]
[1765986884264,0.00161027,87736.0,87707.0,0.52208]
[1765986884414,0.0192,87741.0,87709.0,0.52208]
[1765986884622,0.00161027,87750.0,87726.0,0.01139912]
[1765986884836,0.00161027,87750.0,87721.0,0.0192]
[1765986885035,0.11386417,87748.0,87733.0,0.01351176]
[1765986885237,0.11386417,87746.0,87722.0,0.10073291]
[1765986885437,0.11386417,87737.0,87722.0,0.10073291]
[1765986885662,0.05693004,87736.0,87719.0,0.01351176]
[1765986885856,0.11386417,87742.0,87719.0,0.01351176]
[1765986886058,0.11386417,87742.0,87721.0,0.001]
[1765986886290,0.01916,87745.0,87722.0,0.72365]
[1765986886495,0.01916,87745.0,87719.0,0.01351176]
[1765986886722,0.11386417,87735.0,87705.0,0.72365]
[1765986886943,0.11386417,87726.0,87708.0,0.074281]
[1765986887139,0.11386417,87741.0,87714.0,0.22801238]
[1765986887366,0.11386417,87741.0,87719.0,0.01351176]
[1765986887774,0.01916,87745.0,87719.0,0.01351176]
[1765986888002,0.01916,87745.0,87723.0,0.01351176]
[1765986888003,0.13302417,87745.0,87723.0,0.01351176]
[1765986888229,0.11386417,87745.0,87723.0,0.02491127]
[1765986888434,0.00161027,87748.0,87744.0,3.3e-07]
[1765986888639,0.00161027,87748.0,87729.0,0.01139873]
[1765986888861,0.11386417,87764.0,87735.0,0.22795919]
[1765986889065,0.11386417,87780.0,87748.0,0.48545]
[1765986889275,0.11386417,87766.0,87744.0,0.01916]
[1765986889480,0.11386417,87766.0,87745.0,0.01139666]
[1765986889682,0.11386417,87779.0,87744.0,0.49912614]
[1765986889980,0.11386417,87774.0,87745.0,0.05166245]
[1765986890778,0.11386417,87774.0,87745.0,0.03250245]
[1765986890944,0.05693004,87771.0,87752.0,0.01351176]
[1765986891144,0.01916,87786.0,87757.0,0.0113951]
[1765986891345,0.11386417,87776.0,87752.0,0.01351176]
[1765986891555,0.48499,87780.0,87752.0,0.01351176]
[1765986891769,1.40878969,87780.0,87752.0,0.01351176]
[1765986892012,0.11386417,87769.0,87752.0,0.01351176]
[1765986892167,0.11386417,87769.0,87745.0,0.01882646]
[1765986892516,0.11386417,87769.0,87727.0,0.22797803]
[1765986892517,0.11386417,87751.0,87718.0,0.70665]
[1765986892647,0.00161027,87751.0,87722.0,0.68749]
[1765986892849,0.00161027,87751.0,87744.0,0.001]
[1765986893250,0.00161027,87745.0,87723.0,0.01351176]
[1765986893476,0.00161027,87745.0,87724.0,0.07010018]
[1765986893681,0.00161027,87745.0,87723.0,0.01351176]
[1765986894278,0.11386417,87739.0,87723.0,0.01351176]
[1765986894464,0.11547444,87739.0,87723.0,0.01351176]
[1765986894683,0.11547444,87739.0,87715.0,0.01368067]
[1765986894684,0.00161027,87739.0,87715.0,0.01368067]
[1765986894882,0.00161027,87739.0,87710.0,0.01351176]
[1765986894883,0.11386417,87730.0,87710.0,0.01351176]
[1765986895153,0.00161027,87730.0,87710.0,0.01351176]
[1765986895357,0.02077027,87730.0,87710.0,0.01351176]
[1765986895466,0.00161027,87730.0,87724.0,0.002]
[1765986895878,0.11386417,87743.0,87713.0,0.69889081]
[1765986896102,0.00161027,87737.0,87724.0,0.01351176]
[1765986896555,0.00161027,87737.0,87717.0,0.01368035]
[1765986896852,0.00161027,87737.0,87713.0,0.68749]
[1765986897086,0.00161027,87737.0,87724.0,0.002]
[1765986897315,0.11547444,87737.0,87724.0,0.002]
[1765986897735,0.00161027,87737.0,87724.0,0.002]
[1765986898385,0.00161027,87737.0,87712.0,0.01916]
[1765986898555,0.05693004,87726.0,87713.0,0.0145532]
[1765986898759,0.11386417,87730.0,87712.0,0.01916]
[1765986898965,0.11386417,87730.0,87710.0,0.01351176]
[1765986898966,0.11547444,87730.0,87710.0,0.01351176]
[1765986899121,0.01916,87729.0,87703.0,0.01916]
[1765986899340,2.7e-07,87729.0,87714.0,0.01140068]
[1765986899550,0.11386417,87744.0,87727.0,0.01351176]
[1765986899756,0.92379969,87760.0,87727.0,0.01351176]
[1765986899757,0.00099999,87790.0,87747.0,0.22792657]
[1765986899967,0.00099999,87790.0,87750.0,0.22791917]
[1765986899968,0.11386417,87777.0,87750.0,0.22791917]
[1765986900172,0.48499,87776.0,87750.0,0.0016126]
[1765986900387,0.50237,87779.0,87750.0,0.0016126]
[1765986900661,0.92379969,87780.0,87750.0,0.0016126]
[1765986900662,0.01916,87778.0,87750.0,0.0016126]
[1765986900958,0.001,87820.0,87799.0,0.01138965]
[1765986901125,0.00371512,87840.0,87819.0,0.0016126]
[1765986901358,0.00371512,87840.0,87830.0,0.00099552]
[1765986901359,0.00362957,87840.0,87830.0,0.00099552]
[1765986901580,0.00362957,87840.0,87830.0,0.0016126]
[1765986901801,0.00099999,87890.0,87839.0,0.7108326]
[1765986901802,0.50237,87884.0,87839.0,0.7108326]
[1765986902006,0.50237,87884.0,87818.0,0.02833745]
[1765986902007,0.92379969,87850.0,87812.0,0.70922]
[1765986902243,0.01916,87877.0,87813.0,0.03054783]
[1765986902244,0.3199,87853.0,87813.0,0.03054783]
[1765986902482,0.71565,87872.0,87834.0,0.01138511]
[1765986902716,0.50237,87871.0,87835.0,0.01916]
[1765986902937,1.0,87869.0,87829.0,0.01916]
[1765986903176,0.01916,87874.0,87830.0,0.02604838]
[1765986903177,1.0,87873.0,87830.0,0.02604838]
[1765986903381,0.989,87873.0,87829.0,0.01916]
[1765986903607,0.2907,87869.0,87829.0,0.01916]
[1765986903832,0.2907,87869.0,87817.0,0.1128602]
[1765986903833,1.21802,87869.0,87830.0,0.01916]
[1765986904055,0.71565,87863.0,87830.0,0.01916]
[1765986904272,0.50237,87839.0,87798.0,0.70922]
[1765986904496,1.0,87834.0,87780.0,0.70922]
[1765986904704,0.92379969,87820.0,87781.0,0.01056149]
[1765986904936,1.0,87829.0,87759.0,0.01916]
[1765986904937,2.22556,87799.0,87759.0,0.01916]
[1765986905153,0.92379969,87800.0,87759.0,0.01916]
[1765986905154,1.0,87797.0,87759.0,0.01916]
[1765986905373,0.70984,87788.0,87752.0,0.11145092]
[1765986905595,0.48386,87778.0,87752.0,0.11145092]
[1765986905813,0.70984,87777.0,87753.0,0.01114509]
[1765986906095,0.92379969,87770.0,87740.0,0.1128602]
[1765986906307,0.48386,87767.0,87727.0,0.1128602]
[1765986906529,0.48386,87763.0,87720.0,0.48149]
[1765986906733,0.01916,87772.0,87738.0,0.01351176]
[1765986906938,0.01916,87772.0,87729.0,0.01916]
[1765986906939,0.70984,87766.0,87728.0,0.00024927]
[1765986907157,0.48386,87759.0,87729.0,0.01916]
[1765986907388,0.48386,87759.0,87730.0,0.01916]
[1765986907598,0.48386,87759.0,87728.0,0.00024927]
[1765986907599,0.70984,87785.0,87728.0,0.00024927]
[1765986907803,0.92379969,87760.0,87728.0,0.00024927]
[1765986908013,0.70984,87754.0,87729.0,0.01916]
[1765986908225,0.92379969,87750.0,87728.0,0.00024927]
[1765986908432,0.70984,87728.0,87683.0,0.49289471]
[1765986908639,0.2907,87752.0,87678.0,0.96926587]
[1765986908640,0.48386,87719.0,87691.0,0.01140367]
[1765986908848,0.2907,87745.0,87680.0,0.1320202]
[1765986908849,0.50302,87727.0,87690.0,0.74116]
[1765986909062,0.50302,87727.0,87688.0,0.5943502]
[1765986909063,0.48386,87716.0,87679.0,0.1128602]
[1765986909277,0.48386,87716.0,87681.0,0.01916]
[1765986909486,0.92379969,87710.0,87671.0,0.01261176]
[1765986909689,0.92379969,87700.0,87668.0,0.01916]
[1765986909883,0.48386,87689.0,87648.0,0.74116]
[1765986910122,0.70984,87678.0,87634.0,0.1128602]
[1765986910329,0.48386,87659.0,87621.0,0.22825368]
[1765986910537,0.92379969,87640.0,87595.0,0.76032]
[1765986910753,0.50557,87639.0,87623.0,3e-08]
[1765986910971,0.48641,87634.0,87615.0,3.1e-06]
[1765986911205,0.48641,87613.0,87597.0,7.76e-06]
[1765986911422,0.48641,87613.0,87464.0,0.03429323]
[1765986911423,0.71403,87596.0,87542.0,0.05748953]
[1765986911633,0.71403,87596.0,87530.0,0.00099999]
[1765986911634,0.48783,87589.0,87533.0,0.01142426]
[1765986911847,0.48783,87568.0,87545.0,0.05798831]
[1765986912062,0.48783,87564.0,87528.0,0.01142491]
[1765986912268,1.22404,87563.0,87531.0,0.01142452]
[1765986912500,0.73621,87561.0,87533.0,0.01142426]
[1765986912710,0.73621,87561.0,87522.0,0.22861187]
[1765986912711,0.48783,87556.0,87522.0,0.0001]
[1765986912919,0.48783,87556.0,87502.0,0.01916]
[1765986912920,0.48783,87522.0,87500.0,8.07265209]
[1765986913123,0.28751287,87501.0,87500.0,7.63865209]
[1765986913330,0.02081287,87501.0,87500.0,7.63065209]
[1765986913542,0.02081287,87501.0,87500.0,7.62296209]
[1765986913795,1.56886287,87501.0,87500.0,7.62296209]
[1765986914005,1.56886287,87501.0,87500.0,7.55188209]
[1765986914209,1.56886287,87501.0,87500.0,7.54888209]
[1765986914418,1.90958126,87501.0,87500.0,7.41726948]
[1765986914640,1.90958126,87501.0,87500.0,7.35219499]
[1765986914845,1.90958126,87501.0,87500.0,7.30989499]
[1765986915068,1.90958126,87501.0,87500.0,6.73917664]
[1765986915272,1.93866208,87501.0,87500.0,6.29031303]
[1765986915485,0.99659913,87501.0,87500.0,3.81449777]
[1765986915690,1.00080435,87501.0,87500.0,2.52928082]
[1765986915898,2.08301909,87501.0,87500.0,1.80653796]
[1765986916112,2.06377909,87501.0,87500.0,1.50200851]
[1765986916339,2.06377909,87501.0,87500.0,0.15988148]
[1765986916568,0.7474,87453.0,87413.0,8e-08]
[1765986916782,0.15377655,87480.0,87413.0,8e-08]
[1765986916783,1.7466,87451.0,87414.0,0.01924]
[1765986917009,1.7466,87448.0,87398.0,0.0114419]
[1765986917254,1.7466,87448.0,87440.0,0.01143641]
[1765986917255,1.33131209,87448.0,87440.0,0.01143641]
[1765986917477,1.33131209,87477.0,87448.0,0.01143536]
[1765986917703,1.33131209,87500.0,87452.0,0.01143484]
[1765986917921,0.37598,87497.0,87444.0,0.51111589]
[1765986918128,1.33131209,87496.0,87469.0,0.01143262]
[1765986918339,0.05901058,87540.0,87453.0,0.01928]
[1765986918340,1.33131209,87511.0,87483.0,0.01143079]
[1765986918559,1.33131209,87531.0,87484.0,0.01928]
[1765986918766,0.37598,87528.0,87485.0,0.01928]
[1765986918975,1.30131209,87525.0,87468.0,0.0137193]
[1765986919184,1.30131209,87525.0,87460.0,0.49968]
[1765986919185,0.37598,87522.0,87469.0,0.01928]
[1765986919388,0.37598,87517.0,87460.0,0.01143379]
[1765986919590,0.37598,87517.0,87454.0,0.1128602]
[1765986919591,0.37598,87512.0,87470.0,0.01928]
[1765986919783,1.33131209,87511.0,87475.0,0.01351176]
[1765986919994,1.33131209,87520.0,87492.0,0.01142961]
[1765986920212,1.33131209,87549.0,87514.0,0.01142674]
[1765986920421,1.33131209,87553.0,87515.0,0.01928]
[1765986920573,1.33131209,87548.0,87516.0,0.01928]
[1765986920781,1.33131209,87567.0,87523.0,0.02493732]
[1765986920983,1.33131209,87567.0,87531.0,0.01142452]
[1765986920984,1.33131209,87566.0,87531.0,0.01142452]
[1765986921303,1.33131209,87600.0,87548.0,0.68762]
[1765986921553,1.33131209,87582.0,87540.0,0.68762]
[1765986921854,0.37598,87580.0,87541.0,0.01928]
[1765986922055,0.37598,87580.0,87542.0,0.0137077]
[1765986922056,1.33131209,87579.0,87542.0,0.0137077]
[1765986922260,1.33131209,87578.0,87546.0,0.01142256]
[1765986922476,0.00372951,87604.0,87563.0,0.01142034]
[1765986922477,1.33131209,87603.0,87563.0,0.01142034]
[1765986922687,1.33131209,87603.0,87558.0,0.34128021]
[1765986922688,1.33131209,87603.0,87578.0,0.01141839]
[1765986922894,1.33292496,87603.0,87579.0,0.01370191]
[1765986923089,1.33131209,87602.0,87579.0,0.01928]
[1765986923296,1.33131209,87601.0,87579.0,0.01928]
[1765986923495,1.33131209,87603.0,87580.0,0.49968]
[1765986923845,1.33131209,87602.0,87570.0,0.1128602]
[1765986924046,1.33131209,87602.0,87564.0,0.49968]
[1765986924191,1.33131209,87602.0,87571.0,0.01928]
[1765986924391,1.33131209,87602.0,87572.0,0.01370301]
[1765986924572,1.33131209,87602.0,87573.0,0.01928]
[1765986924794,1.33131209,87602.0,87553.0,0.01142165]
[1765986924795,1.31996516,87600.0,87572.0,0.49968]
[1765986924991,0.48783,87672.0,87617.0,0.1128602]
[1765986925336,0.37971008,87684.0,87618.0,0.01932]
[1765986925337,0.48783,87654.0,87618.0,0.01932]
[1765986925543,1.009289,87667.0,87619.0,0.06933839]
[1765986925752,0.264289,87653.0,87623.0,0.01141252]
[1765986925954,0.00161287,87653.0,87626.0,0.68762]
[1765986926167,0.264289,87652.0,87627.0,0.07125443]